bitfinex-derivatives/quotes_SOLF0:USTF0_20251006
["timestamp","ask_amount","ask_price","bid_price","bid_amount"]
[1759754092923,4.38,234.47,234.4,3.540848]
[1759754092924,59.6866,234.47,234.4,3.540848]
[1759754093124,4.38,234.46,234.4,3.540848]
[1759754093329,4.38,234.46,234.39,3.540848]
[1759754094928,59.6902,234.45,234.39,3.540848]
[1759754095125,3.8381,234.39,234.38,3.540848]
[1759754095328,8.2181,234.39,234.38,3.540848]
[1759754095528,3.8381,234.39,234.38,3.540848]
[1759754098228,59.6866,234.47,234.38,3.540848]
[1759754098433,6.78302547,234.5,234.41,3.540848]
[1759754098637,4.38,234.48,234.41,3.540848]
[1759754098936,4.38,234.48,234.41,10.840848]
[1759754099325,64.0649,234.47,234.41,3.540848]
[1759754099530,3.8378,234.42,234.39,3.540848]
[1759754099730,4.38,234.45,234.39,10.840848]
[1759754100530,62.08352547,234.49,234.4,3.540848]
[1759754100531,66.46352547,234.49,234.4,3.540848]
[1759754100726,4.38,234.48,234.41,7.3]
[1759754100926,62.08352547,234.49,234.41,7.3]
[1759754101137,62.08352547,234.49,234.41,10.840848]
[1759754101138,6.78302547,234.49,234.41,10.840848]
[1759754101428,2.40302547,234.49,234.41,10.840848]
[1759754101628,3.8374,234.44,234.41,10.840848]
[1759754101834,64.0635,234.48,234.41,10.840848]
[1759754102030,4.38,234.47,234.41,7.3]
[1759754102736,4.38,234.47,234.4,3.540848]
[1759754103135,4.38,234.47,234.41,7.3]
[1759754103733,4.38,234.47,234.4,3.540848]
[1759754103935,3.8378,234.42,234.4,3.540848]
[1759754104133,4.38,234.41,234.39,3.540848]
[1759754104437,4.38,234.4,234.34,7.3]
[1759754106635,3.8386,234.37,234.31,4.75975303]
[1759754107042,3.8386,234.37,234.32,7.3]
[1759754107337,3.8386,234.37,234.31,4.75975303]
[1759754107639,3.8386,234.37,234.31,7.3]
[1759754108740,4.38,234.4,234.31,7.3]
[1759754108943,4.38,234.37,234.3,7.3]
[1759754110543,3.8387,234.36,234.3,7.3]
[1759754110946,4.38,234.37,234.3,7.3]
[1759754111239,3.8393,234.33,234.28,4.75975303]
[1759754111444,3.8393,234.33,234.28,7.3]
[1759754111940,3.8393,234.33,234.27,4.75975303]
[1759754112250,64.0955,234.35,234.27,7.3]
[1759754112740,3.8395,234.31,234.25,4.75975303]
[1759754113334,4.38,234.39,234.26,7.3]
[1759754113543,4.38,234.39,234.27,7.3]
[1759754113544,6.78302547,234.39,234.27,7.3]
[1759754114645,3.8388,234.35,234.27,7.3]
[1759754116041,3.8388,234.35,234.28,7.3]
[1759754117646,3.8388,234.35,234.28,12.05975303]
[1759754118145,3.8388,234.35,234.29,7.7]
[1759754118348,3.8385,234.37,234.29,12.45975303]
[1759754118641,3.8385,234.37,234.3,7.7]
[1759754118847,3.8385,234.37,234.23,59.7445]
[1759754118848,3.8382,234.39,234.32,7.7]
[1759754119148,4.4,234.41,234.32,7.7]
[1759754119543,3.8386,234.37,234.31,12.45975303]
[1759754120549,3.8388,234.36,234.32,7.7]
[1759754120751,4.4,234.38,234.32,7.7]
[1759754120944,3.8383,234.39,234.32,7.7]
[1759754121544,3.8378,234.41,234.32,7.7]
[1759754123251,3.8378,234.41,234.33,7.7]
[1759754123450,3.8378,234.41,234.33,11.5391]
[1759754123647,3.8378,234.41,234.34,7.7]
[1759754124251,3.8378,234.41,234.35,7.7]
[1759754129351,9.77520059,234.43,234.35,7.7]
[1759754132856,3.8378,234.42,234.35,7.7]
[1759754133356,5.93770059,234.43,234.35,11.5387]
[1759754133556,5.93770059,234.43,234.36,7.7]
[1759754136359,5.37520059,234.44,234.36,7.7]
[1759754136560,4.4,234.43,234.36,7.7]
[1759754137060,8.2376,234.43,234.36,7.7]
[1759754137261,4.4,234.43,234.36,7.7]
[1759754137964,1.53770059,234.41,234.36,7.7]
[1759754138164,4.4,234.4,234.36,7.7]
[1759754138858,1.53770059,234.41,234.36,7.7]
[1759754139066,4.4,234.4,234.36,7.7]
[1759754139563,8.2381,234.4,234.36,7.7]
[1759754140558,8.2383,234.39,234.33,4.75975303]
[1759754140763,8.2383,234.39,234.33,12.07975303]
[1759754142271,8.2383,234.39,234.33,7.32]
[1759754145874,3.8383,234.39,234.33,7.32]
[1759754148176,5.93770059,234.42,234.33,7.29]
[1759754148177,3.8384,234.38,234.33,7.29]
[1759754148374,3.8384,234.38,234.32,8.59895303]
[1759754149076,3.8384,234.38,234.32,4.75975303]
[1759754149276,4.4,234.39,234.33,7.29]
[1759754150677,8.2383,234.39,234.33,7.29]
[1759754152277,8.2383,234.39,234.33,12.04975303]
[1759754152779,9.77600059,234.39,234.33,12.04975303]
[1759754153881,9.77600059,234.39,234.28,1.53770059]
[1759754153882,3.8385,234.38,234.32,4.75975303]
[1759754154078,4.4,234.37,234.31,4.75975303]
[1759754154279,4.4,234.38,234.31,12.04975303]
[1759754154782,4.4,234.38,234.31,7.29]
[1759754155082,5.93770059,234.38,234.31,7.29]
[1759754155677,3.8386,234.37,234.31,7.29]
[1759754157178,3.8386,234.37,234.31,12.04975303]
[1759754160184,3.8386,234.37,234.32,4.75975303]
[1759754160382,8.2386,234.37,234.32,4.75975303]
[1759754160582,4.4,234.37,234.33,7.29]
[1759754160778,4.4,234.37,234.32,4.75975303]
[1759754161176,4.4,234.37,234.33,7.29]
[1759754161383,4.4,234.37,234.32,4.75975303]
[1759754161585,3.8382,234.39,234.33,7.29]
[1759754161888,4.4,234.4,234.33,12.04975303]
[1759754162080,4.4,234.4,234.34,4.75975303]
[1759754162279,4.4,234.4,234.34,12.04975303]
[1759754162477,4.4,234.35,234.3,12.04975303]
[1759754162780,59.7047,234.4,234.3,4.75975303]
[1759754162781,3.8395,234.32,234.3,4.75975303]
[1759754162983,1.53770059,234.33,234.28,4.75975303]
[1759754163182,4.4,234.32,234.28,12.04975303]
[1759754163383,4.4,234.29,234.28,4.75975303]
[1759754163581,4.4,234.29,234.27,4.75975303]
[1759754163880,4.4,234.29,234.25,4.75975303]
[1759754164086,3.84,234.28,234.26,7.29]
[1759754165383,3.84,234.28,234.22,7.17453012]
[1759754165384,1.53770059,234.3,234.24,4.75975303]
[1759754165589,1.53770059,234.3,234.28,10.84309932]
[1759754167384,1.53770059,234.3,234.28,7.29]
[1759754168079,5.37750059,234.3,234.28,7.29]
[1759754169485,1.53770059,234.3,234.25,3.55309932]
[1759754169685,1.53770059,234.26,234.25,3.55309932]
[1759754170189,1.53770059,234.26,234.24,3.55309932]
[1759754170391,1.53770059,234.26,234.25,3.55309932]
[1759754170589,5.37800059,234.26,234.24,10.84309932]
[1759754170790,1.53770059,234.29,234.25,7.29]
[1759754170985,1.53770059,234.29,234.25,3.55309932]
[1759754171190,1.53770059,234.29,234.27,7.29]
[1759754172586,3.84,234.28,234.27,7.29]
[1759754177097,3.84,234.28,234.25,3.54688071]
[1759754177299,3.84,234.28,234.25,10.83688071]
[1759754177696,3.84,234.28,234.25,7.29]
[1759754177899,3.84,234.28,234.25,7.67]
[1759754178101,1.53770059,234.29,234.24,3.54688071]
[1759754178293,1.53770059,234.29,234.25,7.67]
[1759754178788,1.53770059,234.29,234.24,3.54688071]
[1759754178993,1.53770059,234.29,234.25,7.67]
[1759754179194,1.53770059,234.29,234.24,3.54688071]
[1759754179493,1.53770059,234.29,234.25,7.67]
[1759754179693,5.37760059,234.29,234.24,3.54688071]
[1759754180296,9.76760059,234.29,234.25,7.67]
[1759754180699,9.76760059,234.29,234.24,3.54688071]
[1759754180900,9.76760059,234.29,234.25,7.67]
[1759754181101,9.76760059,234.29,234.24,3.54688071]
[1759754181497,3.8401,234.28,234.25,7.67]
[1759754181692,5.92770059,234.29,234.24,7.67]
[1759754181693,1.53770059,234.29,234.24,7.67]
[1759754181899,5.92770059,234.29,234.24,7.67]
[1759754182098,5.92770059,234.29,234.23,3.54688071]
[1759754182500,5.92770059,234.29,234.23,11.21688071]
[1759754182696,3.8402,234.27,234.23,3.54688071]
[1759754182903,3.8402,234.27,234.24,7.67]
[1759754183602,3.8402,234.27,234.23,3.54688071]
[1759754183804,3.8402,234.27,234.24,7.67]
[1759754184204,3.8402,234.27,234.23,3.54688071]
[1759754184701,3.8402,234.27,234.24,7.67]
[1759754185306,3.8402,234.27,234.23,3.54688071]
[1759754185497,3.8402,234.27,234.24,7.67]
[1759754185807,3.8398,234.29,234.25,7.67]
[1759754186201,3.8403,234.27,234.25,7.67]
[1759754186403,3.8403,234.27,234.24,7.67]
[1759754186602,3.8403,234.27,234.23,3.54688071]
[1759754186805,3.8403,234.27,234.24,7.67]
[1759754187207,3.8403,234.27,234.23,3.54688071]
[1759754187509,3.8403,234.27,234.25,7.67]
[1759754187705,3.8403,234.27,234.24,3.54688071]
[1759754188008,3.8403,234.27,234.25,7.67]
[1759754188408,3.8403,234.27,234.24,3.54688071]
[1759754189104,3.8403,234.27,234.25,7.67]
[1759754189306,3.8403,234.27,234.24,3.54688071]
[1759754189501,3.8403,234.27,234.25,7.67]
[1759754191513,3.8404,234.26,234.24,3.54688071]
[1759754192610,3.8404,234.26,234.24,11.21688071]
[1759754193003,3.8404,234.26,234.24,7.67]
[1759754195106,3.8404,234.26,234.23,3.54688071]
[1759754195314,4.39,234.32,234.25,7.9]
[1759754195515,4.39,234.32,234.25,11.44688071]
[1759754196617,3.84,234.28,234.25,3.54688071]
[1759754196808,3.84,234.28,234.26,7.9]
[1759754198214,3.84,234.28,234.26,11.44688071]
[1759754200013,4.39,234.27,234.26,3.54688071]
[1759754200206,8.2303,234.26,234.24,3.54688071]
[1759754200614,8.2303,234.26,234.24,11.44688071]
[1759754200915,8.2303,234.26,234.24,3.54688071]
[1759754201416,4.39,234.25,234.24,3.54688071]
[1759754202415,8.2306,234.24,234.23,3.54688071]
[1759754203411,3.8406,234.24,234.23,11.44688071]
[1759754203612,3.8406,234.24,234.23,7.9]
[1759754204014,3.8409,234.23,234.21,12.65975303]
[1759754204215,3.8409,234.23,234.22,7.9]
[1759754205720,2.40538659,234.29,234.22,7.9]
[1759754205913,2.40538659,234.29,234.25,3.56013074]
[1759754206112,4.39,234.28,234.25,3.56013074]
[1759754206313,2.40538659,234.29,234.25,3.56013074]
[1759754206513,8.2303,234.26,234.25,3.56013074]
[1759754207220,3.8407,234.24,234.22,12.65975303]
[1759754207816,8.2307,234.24,234.22,12.65975303]
[1759754208119,8.2407,234.24,234.22,4.75975303]
[1759754209219,4.4,234.23,234.22,4.75975303]
[1759754209421,3.8409,234.22,234.2,12.43975303]
[1759754210118,4.4,234.21,234.2,4.75975303]
[1759754211018,3.8413,234.2,234.19,12.43975303]
[1759754212914,3.8413,234.2,234.19,7.68]
[1759754216324,3.8413,234.2,234.18,7.68]
[1759754217925,59.7697,234.14,234.05,7.12717144]
[1759754218227,59.7925,234.05,233.96,7.68]
[1759754219021,2.94919445,234.04,233.96,7.68]
[1759754219225,59.7925,234.05,233.96,7.68]
[1759754219630,3.8445,234.01,233.88,6.99559552]
[1759754219826,3.8445,234.01,233.89,7.68]
[1759754220425,3.8445,234.01,233.9,35.08]
[1759754220727,3.8445,234.01,233.91,7.68]
[1759754224140,2.40538659,234.04,233.91,7.68]
[1759754224340,3.8447,233.99,233.91,7.68]
[1759754224946,3.8443,234.02,233.91,7.68]
[1759754228540,3.8446,234.0,233.91,7.68]
[1759754229342,2.40538659,234.0,233.85,0.74395536]
[1759754229643,59.8109,233.98,233.75,7.68]
[1759754229843,59.8149,233.96,233.76,7.68]
[1759754230136,5.50416677,233.95,233.76,7.68]
[1759754230343,3.8462,233.9,233.78,7.68]
[1759754230938,3.8462,233.9,233.8,7.68]
[1759754232243,59.8207,233.94,233.8,7.68]
[1759754232244,3.8465,233.88,233.8,7.68]
[1759754232944,3.8461,233.91,233.8,7.68]
[1759754233346,59.8207,233.94,233.8,7.68]
[1759754233742,3.8463,233.89,233.8,7.68]
[1759754234844,3.8467,233.87,233.8,7.68]
[1759754236253,3.8463,233.9,233.8,7.68]
[1759754237256,3.8458,233.93,233.81,7.68]
[1759754238656,3.846,233.91,233.82,3.8475]
[1759754239652,3.846,233.91,233.81,7.68]
[1759754241756,3.846,233.91,233.81,11.5276]
[1759754242152,50.88,233.97,233.83,3.8473]
[1759754242357,50.88,233.97,233.81,2.40538659]
[1759754242358,50.88,233.97,233.84,7.25]
[1759754242956,3.8452,233.96,233.85,7.25]
[1759754243151,50.88,233.97,233.85,7.25]
[1759754243656,3.8457,233.94,233.85,7.25]
[1759754243856,2.40538659,233.96,233.85,7.25]
[1759754244061,5.48770862,233.96,233.85,7.25]
[1759754244457,3.8458,233.93,233.85,7.25]
[1759754244855,2.40538659,233.96,233.85,7.25]
[1759754245060,1.5442184,233.93,233.85,7.25]
[1759754245657,50.88,233.97,233.67,62.0]
[1759754245658,1.5442184,233.9,233.8,7.25]
[1759754246056,3.8465,233.89,233.8,7.25]
[1759754246554,1.5442184,233.87,233.8,7.25]
[1759754246760,59.8285,233.91,233.74,7.25]
[1759754246761,1.5442184,233.84,233.74,7.25]
[1759754247052,3.8474,233.83,233.74,7.25]
[1759754247762,3.8476,233.82,233.74,7.25]
[1759754248355,1.5442184,233.81,233.74,7.25]
[1759754249253,3.8482,233.78,233.71,1.5442184]
[1759754250058,3.8484,233.77,233.71,1.5442184]
[1759754250255,1.5442184,233.78,233.69,7.25]
[1759754250565,3.8481,233.79,233.69,7.25]
[1759754250860,3.8481,233.79,233.71,1.5442184]
[1759754251060,3.8481,233.79,233.72,7.25]
[1759754251661,1.5442184,233.8,233.72,7.25]
[1759754251854,3.8477,233.81,233.72,7.25]
[1759754252065,1.5442184,233.85,233.75,7.25]
[1759754252755,3.8476,233.82,233.75,7.25]
[1759754254358,5.3913184,233.85,233.75,7.25]
[1759754254566,1.5442184,233.85,233.75,7.25]
[1759754254760,1.5442184,233.82,233.75,7.25]
[1759754256461,3.8472,233.84,233.75,11.0986]
[1759754256660,3.8472,233.84,233.75,7.25]
[1759754256860,6.9032246,233.84,233.75,7.25]
[1759754257060,3.8472,233.84,233.75,7.25]
[1759754257561,6.90322297,233.84,233.77,3.8483]
[1759754259764,6.90322297,233.84,233.78,7.77]
[1759754260866,3.8475,233.82,233.78,7.77]
[1759754261066,3.8475,233.82,233.76,7.77]
[1759754262366,6.8284414,233.84,233.77,7.77]
[1759754263071,3.8475,233.82,233.73,11.6188]
[1759754263371,3.8475,233.82,233.73,7.77]
[1759754263573,1.5442184,233.86,233.76,11.6185]
[1759754264275,3.847,233.85,233.79,7.77]
[1759754264767,2.94138335,233.87,233.79,7.77]
[1759754266471,4.48560175,233.87,233.79,7.77]
[1759754267162,3.8469,233.86,233.79,7.77]
[1759754267368,1.5442184,233.84,233.79,7.77]
[1759754268470,1.5442184,233.84,233.76,7.91]
[1759754269174,5.3915184,233.84,233.76,7.91]
[1759754271876,3.8474,233.83,233.76,7.91]
[1759754272268,1.5442184,233.81,233.76,7.91]
[1759754272466,74.52,233.88,233.68,1.5442184]
[1759754272467,1.5442184,233.78,233.68,1.5442184]
[1759754272675,1.5442184,233.78,233.69,7.91]
[1759754273079,3.8488,233.75,233.69,7.91]
[1759754273275,59.8447,233.85,233.69,7.91]
[1759754273479,1.5442184,233.8,233.69,7.91]
[1759754273684,3.8481,233.79,233.71,7.91]
[1759754274374,3.8481,233.79,233.72,7.91]
[1759754274574,1.5442184,233.8,233.72,7.91]
[1759754275582,1.5442184,233.8,233.72,11.759]
[1759754275879,1.5442184,233.8,233.73,7.91]
[1759754277171,1.5442184,233.8,233.74,3.8487]
[1759754277373,3.8475,233.82,233.75,7.91]
[1759754277780,1.5442184,233.83,233.75,11.7585]
[1759754279077,5.3917184,233.83,233.76,3.8483]
[1759754279277,1.5442184,233.84,233.77,7.91]
[1759754281185,1.5442184,233.84,233.77,11.7582]
[1759754281381,1.5442184,233.87,233.78,3.57095072]
[1759754281583,1.5442184,233.87,233.8,3.57095072]
[1759754281882,85.1,233.96,233.81,7.91]
[1759754282089,1.5442184,233.91,233.81,3.57095072]
[1759754282284,1.5442184,233.91,233.83,7.91]
[1759754282486,1.5442184,233.94,233.86,7.91]
[1759754282985,1.5442184,233.97,233.89,3.8463]
[1759754283189,1.5442184,233.97,233.9,7.91]
[1759754284085,1.5442184,233.94,233.87,3.57095072]
[1759754284281,1.5442184,233.94,233.86,11.48095072]
[1759754285085,59.8109,233.98,233.85,3.57095072]
[1759754285391,59.8055,234.0,233.83,7.91]
[1759754285392,1.5442184,233.88,233.83,7.91]
[1759754288095,5.3907184,233.88,233.83,7.91]
[1759754289297,1.5442184,233.85,233.8,3.57095072]
[1759754289497,1.5442184,233.85,233.81,7.91]
[1759754290400,1.5442184,233.85,233.8,3.57095072]
[1759754290697,1.5442184,233.85,233.81,7.91]
[1759754292602,5.3913184,233.85,233.81,7.91]
[1759754294606,3.8466,233.88,233.79,7.91]
[1759754294808,3.8466,233.88,233.81,7.91]
[1759754296401,1.5442184,233.89,233.81,3.57095072]
[1759754296608,1.5442184,233.92,233.84,7.91]
[1759754297403,1.5442184,233.92,233.85,3.8469]
[1759754297602,72.46577397,234.03,233.86,7.91]
[1759754297603,1.5442184,233.94,233.86,7.91]
[1759754299610,3.8451,233.97,233.86,7.91]
[1759754299811,1.5442184,233.95,233.86,7.91]
[1759754301711,3.8457,233.93,233.86,7.91]
[1759754302910,3.8454,233.95,233.86,7.91]
[1759754303110,1.5442184,233.94,233.86,7.91]
[1759754303708,1.5442184,233.97,233.89,7.22]
[1759754304609,5.3894184,233.97,233.89,7.22]
[1759754304805,1.5442184,233.97,233.89,7.22]
[1759754305606,3.8455,233.94,233.86,3.57095072]
[1759754305812,3.8455,233.94,233.87,7.22]
[1759754306111,1.5442184,233.95,233.87,7.22]
[1759754307005,2.4122726,233.98,233.87,7.22]
[1759754307209,3.8455,233.95,233.87,7.22]
[1759754308308,3.845,233.97,233.87,7.22]
[1759754309316,3.8453,233.96,233.87,11.0665]
[1759754309515,3.8453,233.96,233.88,7.22]
[1759754309705,3.8453,233.96,233.89,7.22]
[1759754312111,311.0,234.04,233.89,3.57095072]
[1759754312318,311.0,234.04,233.93,7.22]
[1759754312813,105.3,234.07,233.93,7.22]
[1759754312814,68.42796717,234.06,233.93,7.22]
[1759754313014,62.2117726,234.02,233.93,7.22]
[1759754313517,62.2117726,234.02,233.9,3.57095072]
[1759754313518,59.8033,234.01,233.9,3.57095072]
[1759754313714,59.8033,234.01,233.88,7.22]
[1759754314509,2.4122726,234.03,233.89,7.22]
[1759754314709,3.8448,233.99,233.89,7.22]
[1759754315618,3.8448,233.99,233.91,3.8458]
[1759754315818,3.8448,233.99,233.92,7.37]
[1759754318321,62.2100726,234.03,233.92,7.37]
[1759754319321,3.8451,233.97,233.92,7.37]
[1759754320521,3.8451,233.97,233.88,10.92330866]
[1759754321720,3.8451,233.97,233.89,7.37]
[1759754322116,3.8454,233.95,233.89,7.37]
[1759754324225,3.845,233.98,233.9,7.37]
[1759754325622,3.845,233.98,233.9,10.92759052]
[1759754326125,3.8451,233.97,233.9,10.92759052]
[1759754328620,2.4122726,234.0,233.9,10.92759052]
[1759754331517,3.8451,233.97,233.9,10.92759052]
[1759754331924,3.845,233.97,233.9,10.92759052]
[1759754332120,3.845,233.97,233.9,7.37]
[1759754333529,2.4122726,234.0,233.9,7.40359052]
[1759754333720,2.4122726,234.0,233.91,7.41]
[1759754333925,3.8451,233.97,233.91,7.41]
[1759754334431,2.4122726,234.0,233.91,7.41]
[1759754335632,3.8453,233.96,233.91,7.41]
[1759754336223,3.8453,233.96,233.9,3.55759052]
[1759754336430,3.8453,233.96,233.9,10.96759052]
[1759754336631,3.8455,233.95,233.91,7.41]
[1759754337134,3.8455,233.95,233.9,3.55759052]
[1759754337733,3.8455,233.95,233.91,7.41]
[1759754338032,3.8455,233.95,233.9,3.55759052]
[1759754338228,3.8455,233.95,233.91,3.55759052]
[1759754338627,3.8455,233.95,233.92,7.41]
[1759754339631,3.8455,233.95,233.91,3.55759052]
[1759754339826,3.8455,233.95,233.92,7.41]
[1759754340133,3.8455,233.95,233.92,10.96759052]
[1759754340332,3.8455,233.95,233.93,7.41]
[1759754340528,3.845,233.97,233.93,7.41]
[1759754341133,2.4122726,234.0,233.93,3.55759052]
[1759754341432,2.4122726,234.0,233.92,3.55759052]
[1759754342026,3.8454,233.95,233.92,3.55759052]
[1759754342426,3.8454,233.95,233.93,3.55759052]
[1759754344334,3.8457,233.93,233.92,10.96759052]
[1759754344539,3.8457,233.93,233.81,2.4122726]
[1759754344540,3.8457,233.93,233.91,3.55759052]
[1759754344739,2.4122726,233.96,233.9,3.55759052]
[1759754344929,3.846,233.91,233.89,3.55759052]
[1759754345441,3.846,233.91,233.88,3.55759052]
[1759754345738,3.8463,233.9,233.88,3.55759052]
[1759754346040,2.4122726,233.92,233.86,3.55759052]
[1759754346333,59.8198,233.94,233.85,3.55759052]
[1759754346334,2.4122726,233.91,233.85,3.55759052]
[1759754346538,2.4122726,233.91,233.83,3.55759052]
[1759754346937,3.8469,233.86,233.83,10.96759052]
[1759754347242,3.8469,233.86,233.83,7.41]
[1759754347435,3.8469,233.86,233.82,3.55759052]
[1759754347733,3.8469,233.86,233.83,7.41]
[1759754347934,3.8469,233.86,233.82,3.55759052]
[1759754348142,3.8469,233.86,233.83,7.41]
[1759754348536,2.4122726,233.91,233.82,3.55759052]
[1759754348845,62.2258726,233.97,233.86,3.55759052]
[1759754349048,62.2258726,233.97,233.87,7.41]
[1759754350543,3.846,233.92,233.87,7.41]
[1759754350738,3.846,233.92,233.86,7.41]
[1759754351544,3.8461,233.91,233.85,3.55759052]
[1759754351739,59.8174,233.95,233.85,10.96759052]
[1759754352044,2.4122726,233.93,233.85,7.41]
[1759754353540,3.8464,233.89,233.85,7.41]
[1759754355550,2.4122726,233.89,233.8,3.55759052]
[1759754356247,12.83,233.77,233.64,0.07366416]
[1759754356455,59.8982,233.64,233.5,7.41]
[1759754356752,2.4122726,233.57,233.54,1.72]
[1759754356952,2.4122726,233.57,233.53,1.72]
[1759754357149,3.33811759,233.56,233.46,7.41]
[1759754357349,113.11811759,233.56,233.46,7.41]
[1759754357548,3.33811759,233.55,233.52,1.72]
[1759754358260,2.4122726,233.57,233.52,9.16]
[1759754358550,112.2722726,233.57,233.52,9.16]
[1759754358856,3.36450363,233.56,233.53,7.44]
[1759754359060,3.36450363,233.56,233.54,1.72]
[1759754359453,2.4122726,233.57,233.49,7.44]
[1759754359653,39.7922726,233.57,233.53,1.72]
[1759754359860,3.36450363,233.56,233.53,1.72]
[1759754360156,90.7922726,233.57,233.53,1.72]
[1759754360360,3.36921346,233.56,233.53,1.72]
[1759754361452,3.36921346,233.56,233.49,7.44]
[1759754362768,3.36921346,233.56,233.44,7.44]
[1759754363065,3.36921346,233.56,233.51,9.16]
[1759754363858,3.36921346,233.56,233.51,1.72]
[1759754364058,109.96,233.55,233.51,1.72]
[1759754364369,3.36921346,233.54,233.51,1.72]
[1759754364971,3.36921346,233.54,233.52,7.44]
[1759754365671,3.36921346,233.54,233.51,1.72]
[1759754366169,109.86,233.53,233.51,1.72]
[1759754366361,109.86,233.53,233.51,9.16]
[1759754366868,109.82,233.55,233.51,9.16]
[1759754367074,3.31381578,233.54,233.51,1.72]
[1759754367770,109.82,233.55,233.51,1.72]
[1759754368763,109.82,233.55,233.48,7.44]
[1759754368964,109.82,233.55,233.49,1.72]
[1759754369375,109.82,233.55,233.48,7.44]
[1759754370575,1.54904637,233.57,233.48,7.44]
[1759754370775,109.74,233.56,233.48,7.44]
[1759754371075,3.29368773,233.55,233.48,7.44]
[1759754372972,109.56,233.55,233.48,7.44]
[1759754373176,3.29368773,233.54,233.48,7.44]
[1759754373378,3.29368773,233.54,233.51,1.72]
[1759754374273,109.54,233.56,233.51,9.16]
[1759754374473,3.29368773,233.55,233.51,9.16]
[1759754375571,3.29368773,233.55,233.51,1.72]
[1759754375972,3.29368773,233.55,233.52,7.22]
[1759754376173,60.3,233.57,233.53,8.94]
[1759754376374,3.29368773,233.56,233.53,8.94]
[1759754377773,3.29368773,233.56,233.54,7.22]
[1759754378073,3.29368773,233.56,233.53,1.72]
[1759754378273,3.851,233.61,233.55,1.72]
[1759754378274,1.54904637,233.61,233.55,1.72]
[1759754378578,104.50904637,233.61,233.55,1.72]
[1759754378775,1.54904637,233.61,233.57,1.72]
[1759754378975,110.84904637,233.61,233.57,1.72]
[1759754380572,110.84904637,233.61,233.57,1.72]
[1759754381179,3.19372579,233.6,233.57,1.72]
[1759754382379,3.19372579,233.6,233.55,7.22]
[1759754382580,3.19372579,233.6,233.57,1.72]
[1759754382878,3.19372579,233.6,233.55,7.22]
[1759754383669,3.19372579,233.6,233.57,1.72]
[1759754383873,3.19372579,233.6,233.51,7.22]
[1759754384077,3.19372579,233.6,233.54,1.72]
[1759754384278,3.19372579,233.6,233.51,7.22]
[1759754384477,3.19372579,233.6,233.55,8.94]
[1759754384680,3.19372579,233.6,233.55,1.72]
[1759754384882,3.19372579,233.6,233.55,8.94]
[1759754386472,3.19372579,233.6,233.5,5.40174637]
[1759754386678,31.9,233.61,233.53,7.22]
[1759754386885,3.19372579,233.6,233.57,1.72]
[1759754388081,3.19372579,233.6,233.49,7.45]
[1759754388279,4.74277216,233.59,233.54,1.72]
[1759754388580,3.19372579,233.58,233.54,1.72]
[1759754388780,1.54904637,233.59,233.54,1.72]
[1759754389381,3.8514,233.58,233.54,1.72]
[1759754389777,7.04512579,233.58,233.54,1.72]
[1759754390079,3.19372579,233.57,233.54,1.72]
[1759754391077,3.19372579,233.58,233.54,9.17]
[1759754392186,3.19372579,233.57,233.54,9.17]
[1759754392384,3.19372579,233.58,233.54,9.17]
[1759754392576,3.19372579,233.57,233.54,9.17]
[1759754392877,3.19372579,233.58,233.54,9.17]